[Event "*** Titled Tuesday 3|2 Blitz"]
[Site "Chess.com"]
[Date "2016.09.06"]
[Round "4"]
[White "Viaje"]
[Black "Goala"]
[Result "1-0"]
[WhiteElo "2201"]
[BlackElo "2138"]
[TimeControl "180+2"]
[EndTime "17:46:32 PDT"]
[Termination "Viaje won by resignation"]

1. d4 {[%clk 0:03:01.9]} 1... e6 {[%clk 0:02:58.4]} 2. e4 {[%clk 0:03:02.2]}
2... Nf6 {[%clk 0:03:00.3]} 3. e5 {[%clk 0:02:55.2]} 3... Ng8 {[%clk 0:03:01.8]}
4. c4 {[%clk 0:02:46.7]} 4... Ne7 {[%clk 0:03:03.7]} 5. Nc3 {[%clk 0:02:46.9]}
5... d5 {[%clk 0:03:04.8]} 6. Nf3 {[%clk 0:02:41]} 6... dxc4 {[%clk 0:03:05.3]}
7. Bxc4 {[%clk 0:02:41.4]} 7... Nd7 {[%clk 0:03:04.1]} 8. O-O {[%clk 0:02:35]}
8... Nb6 {[%clk 0:03:05.2]} 9. Bb3 {[%clk 0:02:35.2]} 9... Ned5 {[%clk
0:03:06.8]} 10. Ne4 {[%clk 0:02:35.9]} 10... Be7 {[%clk 0:03:07.5]} 11. a3
{[%clk 0:02:36]} 11... O-O {[%clk 0:03:08.1]} 12. Bc2 {[%clk 0:02:36.8]} 12...
Bd7 {[%clk 0:03:07.7]} 13. Bg5 {[%clk 0:02:37.2]} 13... Rc8 {[%clk 0:03:02.9]}
14. Qd3 {[%clk 0:02:35.4]} 14... g6 {[%clk 0:03:02.7]} 15. b4 {[%clk 0:02:25.5]}
15... a6 {[%clk 0:03:04.1]} 16. Bh6 {[%clk 0:02:23.5]} 16... Bb5 {[%clk
0:03:04.9]} 17. Qd2 {[%clk 0:02:21.5]} 17... Bxf1 {[%clk 0:03:05.1]} 18. Rxf1
{[%clk 0:02:23.4]} 18... Nc4 {[%clk 0:03:00.4]} 19. Qd3 {[%clk 0:02:16.5]} 19...
Ncb6 {[%clk 0:02:40.5]} 20. Nfg5 {[%clk 0:02:12]} 20... a5 {[%clk 0:02:33.9]}
21. bxa5 {[%clk 0:02:07.2]} 21... Nd7 {[%clk 0:02:35.5]} 22. Qh3 {[%clk
0:01:56.7]} 22... Nf4 {[%clk 0:02:26.5]} 23. Qh4 {[%clk 0:01:56.5]} 23... Ne2+
{[%clk 0:02:19.5]} 24. Kh1 {[%clk 0:01:56.5]} 24... Re8 {[%clk 0:02:14.1]} 25.
Rd1 {[%clk 0:01:33.5]} 25... c5 {[%clk 0:02:02.1]} 26. d5 {[%clk 0:01:03]} 26...
Nd4 {[%clk 0:01:48.3]} 27. dxe6 {[%clk 0:01:03.3]} 27... fxe6 {[%clk 0:01:46.8]}
28. Ba4 {[%clk 0:01:00.8]} 28... Nxe5 {[%clk 0:01:32.6]} 29. Bg7 {[%clk
0:00:57]} 29... h5 {[%clk 0:01:27.2]} 30. Bxe5 {[%clk 0:00:55.5]} 30... Nf5
{[%clk 0:01:26.2]} 31. Qf4 {[%clk 0:00:48.2]} 31... Bxg5 {[%clk 0:01:20.3]} 32.
Nxg5 {[%clk 0:00:44.4]} 32... Qe7 {[%clk 0:01:18.7]} 33. Rd7 {[%clk 0:00:40]}
33... Qf8 {[%clk 0:00:56.8]} 34. Nh7 {[%clk 0:00:37.4]} 34... Qh6 {[%clk
0:00:48.5]} 35. Nf6+ {[%clk 0:00:27.8]} 35... Kf8 {[%clk 0:00:47.1]} 36. Bd6+
{[%clk 0:00:24.3]} 36... Re7 {[%clk 0:00:45.1]} 37. Bxe7+ {[%clk 0:00:24.4]}
37... Kg7 {[%clk 0:00:43.8]} 38. Bd8+ {[%clk 0:00:20.3]} 38... Kf8 {[%clk
0:00:36.2]} 39. Qxh6+ {[%clk 0:00:18.1]} 39... Nxh6 {[%clk 0:00:37.3]} 40. h3
{[%clk 0:00:20]} 40... c4 {[%clk 0:00:36.6]} 41. Bc2 {[%clk 0:00:20.5]} 41...
Nf7 {[%clk 0:00:35.2]} 42. Be7+ {[%clk 0:00:21.1]} 42... Kg7 {[%clk 0:00:36.9]}
43. Ne4 {[%clk 0:00:21.9]} 43... Rc6 {[%clk 0:00:28.5]} 44. Bf6+ {[%clk
0:00:22.8]} 44... Kf8 {[%clk 0:00:30.1]} 45. Ng5 {[%clk 0:00:23]} 45... Nxg5
{[%clk 0:00:27.8]} 46. Bxg5 {[%clk 0:00:24.9]} 46... Rc5 {[%clk 0:00:29.3]} 47.
Bf6 {[%clk 0:00:24.8]} 47... Rxa5 {[%clk 0:00:28.6]} 48. Bxg6 {[%clk 0:00:25.5]}
48... Ra8 {[%clk 0:00:29.4]} 49. Rf7+ {[%clk 0:00:26.2]} 49... Kg8 {[%clk
0:00:28.3]} 50. Rh7 {[%clk 0:00:27.3]} 1-0

[Event "*** Titled Tuesday 3|2 Blitz"]
[Site "Chess.com"]
[Date "2016.09.06"]
[Round "4"]
[White "FairChess_on_YouTube"]
[Black "DeviatkinAndrey"]
[Result "1-0"]
[WhiteElo "2698"]
[BlackElo "2588"]
[TimeControl "180+2"]
[EndTime "17:47:02 PDT"]
[Termination "FairChess_on_YouTube won by resignation"]

1. d4 {[%clk 0:03:00.6]} 1... d5 {[%clk 0:03:00.3]} 2. c4 {[%clk 0:03:00.5]}
2... c6 {[%clk 0:03:01.2]} 3. Nc3 {[%clk 0:03:00.4]} 3... Nf6 {[%clk 0:02:59.8]}
4. Nf3 {[%clk 0:03:00.9]} 4... dxc4 {[%clk 0:03:00.3]} 5. g3 {[%clk 0:03:01.1]}
5... g6 {[%clk 0:03:00.2]} 6. Ne5 {[%clk 0:02:55.9]} 6... Bg7 {[%clk 0:02:53.5]}
7. Nxc4 {[%clk 0:02:56.4]} 7... Be6 {[%clk 0:02:35.9]} 8. Ne5 {[%clk 0:02:48.1]}
8... Nbd7 {[%clk 0:02:28.7]} 9. Nf3 {[%clk 0:02:48.7]} 9... O-O {[%clk
0:01:39.5]} 10. Bg2 {[%clk 0:02:49.4]} 10... Qb6 {[%clk 0:01:12]} 11. O-O {[%clk
0:02:48.6]} 11... Rad8 {[%clk 0:01:11.1]} 12. Qc2 {[%clk 0:02:22.3]} 12... Bf5
{[%clk 0:01:04.2]} 13. e4 {[%clk 0:02:20.8]} 13... Bg4 {[%clk 0:01:05.4]} 14.
Be3 {[%clk 0:02:21.5]} 14... Qa6 {[%clk 0:01:03.5]} 15. Rfd1 {[%clk 0:01:47.8]}
15... e5 {[%clk 0:01:00.8]} 16. dxe5 {[%clk 0:01:45.4]} 16... Bxf3 {[%clk
0:01:01.2]} 17. Bxf3 {[%clk 0:01:40.2]} 17... Nxe5 {[%clk 0:01:02.4]} 18. Be2
{[%clk 0:01:39.6]} 18... Qa5 {[%clk 0:01:03.8]} 19. Rxd8 {[%clk 0:01:34.8]}
19... Rxd8 {[%clk 0:01:04]} 20. Rd1 {[%clk 0:01:35.9]} 20... Nfg4 {[%clk
0:00:53.5]} 21. Rxd8+ {[%clk 0:01:27.4]} 21... Qxd8 {[%clk 0:00:54.1]} 22. Bxa7
{[%clk 0:01:21.2]} 22... b6 {[%clk 0:00:53.4]} 23. Qd1 {[%clk 0:01:11.3]} 23...
Qc7 {[%clk 0:00:44.7]} 24. Bxg4 {[%clk 0:01:11.7]} 24... Qxa7 {[%clk 0:00:45.1]}
25. Qd8+ {[%clk 0:01:08.1]} 25... Bf8 {[%clk 0:00:45.9]} 26. Be2 {[%clk
0:01:09.3]} 26... b5 {[%clk 0:00:42.2]} 27. a3 {[%clk 0:01:07.2]} 27... Kg7
{[%clk 0:00:34.9]} 28. Kg2 {[%clk 0:01:06.5]} 28... Be7 {[%clk 0:00:35.6]} 29.
Qd2 {[%clk 0:01:01.6]} 29... b4 {[%clk 0:00:25.5]} 30. axb4 {[%clk 0:01:01.7]}
30... Bxb4 {[%clk 0:00:26.5]} 31. f4 {[%clk 0:01:01.5]} 31... Nd7 {[%clk
0:00:25.9]} 32. e5 {[%clk 0:00:57.6]} 32... Nf8 {[%clk 0:00:20.9]} 33. Bc4
{[%clk 0:00:50.7]} 33... Qc5 {[%clk 0:00:21.8]} 34. Qd3 {[%clk 0:00:50.7]} 34...
Bxc3 {[%clk 0:00:20.1]} 35. Qxc3 {[%clk 0:00:49.3]} 35... Qe7 {[%clk 0:00:13]}
36. e6+ {[%clk 0:00:42]} 36... f6 {[%clk 0:00:14]} 37. Qe3 {[%clk 0:00:39.4]}
37... c5 {[%clk 0:00:15.3]} 38. g4 {[%clk 0:00:36.4]} 38... Nd7 {[%clk
0:00:08.6]} 39. Qb3 {[%clk 0:00:28.7]} 39... Nf8 {[%clk 0:00:06.2]} 40. f5
{[%clk 0:00:27.9]} 40... Kh6 {[%clk 0:00:05.4]} 41. Qe3+ {[%clk 0:00:24.7]}
41... Kg7 {[%clk 0:00:06.5]} 42. Qd3 {[%clk 0:00:23.8]} 42... Kh6 {[%clk
0:00:05.9]} 43. Qd2+ {[%clk 0:00:24.4]} 43... Kg7 {[%clk 0:00:06.8]} 44. b3
{[%clk 0:00:25.6]} 44... Kg8 {[%clk 0:00:05]} 45. Qd8 {[%clk 0:00:19.7]} 45...
Qb7+ {[%clk 0:00:03]} 46. Bd5 {[%clk 0:00:20.6]} 46... Qb4 {[%clk 0:00:03.5]}
47. e7+ {[%clk 0:00:21.2]} 1-0

[Event "*** Titled Tuesday 3|2 Blitz"]
[Site "Chess.com"]
[Date "2016.09.06"]
[Round "4"]
[White "yurisolo"]
[Black "matein28"]
[Result "1-0"]
[WhiteElo "2489"]
[BlackElo "2335"]
[TimeControl "180+2"]
[EndTime "17:47:09 PDT"]
[Termination "yurisolo won by checkmate"]

1. e4 {[%clk 0:02:59.8]} 1... d5 {[%clk 0:03:00.9]} 2. exd5 {[%clk 0:03:00.6]}
2... Qxd5 {[%clk 0:03:01.9]} 3. Nc3 {[%clk 0:03:02.2]} 3... Qa5 {[%clk
0:03:02.8]} 4. d4 {[%clk 0:03:03.7]} 4... c6 {[%clk 0:03:02.9]} 5. Bd2 {[%clk
0:03:05.4]} 5... Nf6 {[%clk 0:03:03.9]} 6. Nf3 {[%clk 0:02:52.6]} 6... Bf5
{[%clk 0:02:59.9]} 7. Bc4 {[%clk 0:02:53.1]} 7... e6 {[%clk 0:03:00.7]} 8. Nd5
{[%clk 0:02:52.7]} 8... Qd8 {[%clk 0:03:00.3]} 9. Nxf6+ {[%clk 0:02:53.6]} 9...
Qxf6 {[%clk 0:03:01.5]} 10. Qe2 {[%clk 0:02:48.3]} 10... Bg4 {[%clk 0:02:57]}
11. Be3 {[%clk 0:02:40.3]} 11... Nd7 {[%clk 0:02:53.4]} 12. O-O-O {[%clk
0:02:40.5]} 12... Bd6 {[%clk 0:02:51.3]} 13. h3 {[%clk 0:02:39.8]} 13... Bxf3
{[%clk 0:02:52.4]} 14. gxf3 {[%clk 0:02:41.7]} 14... O-O-O {[%clk 0:02:52.6]}
15. Bb3 {[%clk 0:02:38.4]} 15... Bf4 {[%clk 0:02:53]} 16. Kb1 {[%clk 0:02:39.5]}
16... Rhe8 {[%clk 0:02:50.7]} 17. Qd2 {[%clk 0:02:39.1]} 17... Bxe3 {[%clk
0:02:46.1]} 18. fxe3 {[%clk 0:02:40.2]} 18... e5 {[%clk 0:02:43.8]} 19. Qf2
{[%clk 0:02:11.6]} 19... exd4 {[%clk 0:02:32.8]} 20. Rxd4 {[%clk 0:02:13.5]}
20... Ne5 {[%clk 0:02:29.2]} 21. Rxd8+ {[%clk 0:02:14.2]} 21... Rxd8 {[%clk
0:02:29]} 22. f4 {[%clk 0:02:15.7]} 22... Ng6 {[%clk 0:02:24.4]} 23. a3 {[%clk
0:01:58.8]} 23... Qf5 {[%clk 0:02:18.2]} 24. h4 {[%clk 0:01:54.9]} 24... Ne5
{[%clk 0:02:04.7]} 25. Rg1 {[%clk 0:01:38.5]} 25... Ng4 {[%clk 0:02:05.3]} 26.
Qf3 {[%clk 0:01:26.2]} 26... h5 {[%clk 0:02:04.5]} 27. e4 {[%clk 0:01:26.7]}
27... Qc5 {[%clk 0:02:04.1]} 28. Re1 {[%clk 0:01:17.8]} 28... Rd2 {[%clk
0:01:58.6]} 29. e5 {[%clk 0:01:14.9]} 29... Kc7 {[%clk 0:01:49.5]} 30. Qe4
{[%clk 0:01:08.5]} 30... g6 {[%clk 0:01:41.2]} 31. Bxf7 {[%clk 0:01:05.4]} 31...
Nf2 {[%clk 0:01:34.3]} 32. Qc4 {[%clk 0:01:05.8]} 32... Qe7 {[%clk 0:01:28.8]}
33. Bxg6 {[%clk 0:00:58.8]} 33... Qxh4 {[%clk 0:01:27.4]} 34. Rc1 {[%clk
0:00:39.1]} 34... Qe7 {[%clk 0:01:24.8]} 35. Qc3 {[%clk 0:00:37.7]} 35... Rd8
{[%clk 0:01:20.6]} 36. Bxh5 {[%clk 0:00:38.3]} 36... Rf8 {[%clk 0:01:20.4]} 37.
Qe3 {[%clk 0:00:38.1]} 37... Qh4 {[%clk 0:01:19.4]} 38. e6 {[%clk 0:00:29.2]}
38... Qxh5 {[%clk 0:00:59]} 39. Qxf2 {[%clk 0:00:29.6]} 39... Qf5 {[%clk
0:01:00.3]} 40. Re1 {[%clk 0:00:30.1]} 40... Re8 {[%clk 0:01:00.3]} 41. Qe3
{[%clk 0:00:24.7]} 41... Kd6 {[%clk 0:01:01.5]} 42. Qxa7 {[%clk 0:00:20.7]}
42... Rxe6 {[%clk 0:01:00.6]} 43. Qb8+ {[%clk 0:00:21.6]} 43... Kc5 {[%clk
0:00:55.4]} 44. Rxe6 {[%clk 0:00:20.2]} 44... Qxe6 {[%clk 0:00:57.3]} 45. Qxb7
{[%clk 0:00:17.2]} 45... Qe1+ {[%clk 0:00:56.9]} 46. Ka2 {[%clk 0:00:17.9]}
46... Qf1 {[%clk 0:00:56.5]} 47. Qb4+ {[%clk 0:00:15.6]} 47... Kd5 {[%clk
0:00:58.1]} 48. a4 {[%clk 0:00:13.8]} 48... c5 {[%clk 0:00:58.3]} 49. Qd2+
{[%clk 0:00:14.7]} 49... Kc6 {[%clk 0:00:58.8]} 50. b3 {[%clk 0:00:15.7]} 50...
Kb7 {[%clk 0:00:56.3]} 51. Qe3 {[%clk 0:00:16.2]} 51... Kc6 {[%clk 0:00:54.2]}
52. Qe4+ {[%clk 0:00:16.4]} 52... Kb6 {[%clk 0:00:54.2]} 53. f5 {[%clk
0:00:17.8]} 53... Qf2 {[%clk 0:00:54.1]} 54. Kb2 {[%clk 0:00:16.2]} 54... Qg3
{[%clk 0:00:52.9]} 55. f6 {[%clk 0:00:15.4]} 55... Qg5 {[%clk 0:00:54]} 56. Qe6+
{[%clk 0:00:15.5]} 56... Ka5 {[%clk 0:00:55.7]} 57. f7 {[%clk 0:00:14.7]} 57...
Qg7+ {[%clk 0:00:57.4]} 58. Ka2 {[%clk 0:00:14.9]} 58... Qc3 {[%clk 0:00:56.7]}
59. Qc4 {[%clk 0:00:15.5]} 59... Qf6 {[%clk 0:00:46.3]} 60. Qb5# {[%clk
0:00:14.9]} 1-0

[Event "*** Titled Tuesday 3|2 Blitz"]
[Site "Chess.com"]
[Date "2016.09.06"]
[Round "4"]
[White "Evgeny_Levin"]
[Black "psv98"]
[Result "1/2-1/2"]
[WhiteElo "2651"]
[BlackElo "2543"]
[TimeControl "180+2"]
[EndTime "17:48:02 PDT"]
[Termination "Game drawn by agreement"]

1. d4 {[%clk 0:03:02]} 1... Nf6 {[%clk 0:02:59.8]} 2. c4 {[%clk 0:03:02.7]} 2...
e6 {[%clk 0:03:01.3]} 3. Nc3 {[%clk 0:03:00]} 3... Bb4 {[%clk 0:03:02.5]} 4. e3
{[%clk 0:03:00.6]} 4... d5 {[%clk 0:02:59.1]} 5. Nf3 {[%clk 0:03:00.7]} 5... O-O
{[%clk 0:02:58.7]} 6. Bd3 {[%clk 0:03:01.6]} 6... c5 {[%clk 0:02:57.1]} 7. O-O
{[%clk 0:03:02.3]} 7... dxc4 {[%clk 0:02:58.5]} 8. Bxc4 {[%clk 0:03:02.3]} 8...
Nbd7 {[%clk 0:03:00.1]} 9. Qe2 {[%clk 0:02:58.2]} 9... b6 {[%clk 0:02:57.1]} 10.
Rd1 {[%clk 0:02:56.2]} 10... Bb7 {[%clk 0:02:42.7]} 11. dxc5 {[%clk 0:02:38.6]}
11... Bxc3 {[%clk 0:02:27.6]} 12. bxc3 {[%clk 0:02:30.9]} 12... bxc5 {[%clk
0:02:28.2]} 13. Ne5 {[%clk 0:02:13.5]} 13... Qc7 {[%clk 0:02:27.3]} 14. Nxd7
{[%clk 0:02:14.3]} 14... Nxd7 {[%clk 0:02:29.2]} 15. e4 {[%clk 0:02:15.6]} 15...
Nb6 {[%clk 0:02:28.5]} 16. f3 {[%clk 0:02:06]} 16... Bc6 {[%clk 0:02:22.6]} 17.
Be3 {[%clk 0:02:03.8]} 17... Ba4 {[%clk 0:02:22.5]} 18. Rd2 {[%clk 0:01:46.2]}
18... Rad8 {[%clk 0:02:21.7]} 19. Ba6 {[%clk 0:01:05.8]} 19... h6 {[%clk
0:02:16.2]} 20. Rb1 {[%clk 0:00:55.4]} 20... Rxd2 {[%clk 0:02:09.3]} 21. Qxd2
{[%clk 0:00:55.2]} 21... Rd8 {[%clk 0:01:35.8]} 22. Qf2 {[%clk 0:00:54.9]} 22...
Qc6 {[%clk 0:01:25.4]} 23. Bf1 {[%clk 0:00:45.5]} 23... Rc8 {[%clk 0:01:09.1]}
24. Qg3 {[%clk 0:00:42.1]} 24... Kf8 {[%clk 0:01:04.6]} 25. Rb2 {[%clk 0:00:36]}
25... Rd8 {[%clk 0:00:52.7]} 26. Qf2 {[%clk 0:00:34.7]} 26... Rd1 {[%clk
0:00:29]} 27. Rd2 {[%clk 0:00:29.5]} 27... Rxd2 {[%clk 0:00:24.5]} 28. Qxd2
{[%clk 0:00:31.4]} 28... Ke7 {[%clk 0:00:22.5]} 29. c4 {[%clk 0:00:26.4]} 29...
Nd7 {[%clk 0:00:16.6]} 30. Qa5 {[%clk 0:00:26.6]} 30... a6 {[%clk 0:00:17.3]}
31. Qc3 {[%clk 0:00:23.9]} 31... e5 {[%clk 0:00:17.8]} 32. Be2 {[%clk
0:00:23.9]} 32... Qb6 {[%clk 0:00:15.6]} 33. Qa3 {[%clk 0:00:22.1]} 33... Bc6
{[%clk 0:00:14.8]} 34. Kf2 {[%clk 0:00:23.3]} 34... f6 {[%clk 0:00:15.8]} 35. h3
{[%clk 0:00:20.9]} 35... Kd6 {[%clk 0:00:15.4]} 36. Qd3+ {[%clk 0:00:20.7]}
36... Ke7 {[%clk 0:00:17]} 37. Qa3 {[%clk 0:00:22.4]} 37... Kd6 {[%clk
0:00:18.2]} 38. Kg1 {[%clk 0:00:21.3]} 38... Ke7 {[%clk 0:00:13.7]} 39. h4
{[%clk 0:00:22.2]} 39... Kd6 {[%clk 0:00:14.6]} 40. Kf2 {[%clk 0:00:23.3]} 40...
Ke7 {[%clk 0:00:15.8]} 41. Qb3 {[%clk 0:00:23.8]} 41... Qxb3 {[%clk 0:00:11.4]}
42. axb3 {[%clk 0:00:25.7]} 42... Kd6 {[%clk 0:00:12.8]} 43. g3 {[%clk 0:00:25]}
43... Nb8 {[%clk 0:00:12.9]} 44. Bd3 {[%clk 0:00:24.5]} 44... Bd7 {[%clk
0:00:13.9]} 45. Bc2 {[%clk 0:00:24.6]} 45... Nc6 {[%clk 0:00:15.3]} 46. Bd1
{[%clk 0:00:25.6]} 46... Nd4 {[%clk 0:00:13.3]} 47. Ke1 {[%clk 0:00:26.5]} 47...
Be8 {[%clk 0:00:07.9]} 48. Kf2 {[%clk 0:00:27.2]} 48... Bd7 {[%clk 0:00:08.3]}
49. Ke1 {[%clk 0:00:28.1]} 49... Bc6 {[%clk 0:00:09.6]} 50. Kd2 {[%clk
0:00:28.5]} 50... Bd7 {[%clk 0:00:07.1]} 51. g4 {[%clk 0:00:28.3]} 51... Bc6
{[%clk 0:00:07.9]} 52. Kc3 {[%clk 0:00:29.1]} 52... g5 {[%clk 0:00:06.6]} 53. h5
{[%clk 0:00:29.3]} 53... a5 {[%clk 0:00:07.4]} 54. Kb2 {[%clk 0:00:29]} 54...
Kc7 {[%clk 0:00:07.6]} 55. Bd2 {[%clk 0:00:29.6]} 55... Kb6 {[%clk 0:00:08.4]}
56. Bc3 {[%clk 0:00:30.3]} 56... Bd7 {[%clk 0:00:09.3]} 57. Bd2 {[%clk
0:00:31.1]} 57... Nc6 {[%clk 0:00:10.1]} 58. Bc3 {[%clk 0:00:31.6]} 58... Nb4
{[%clk 0:00:11.4]} 59. Be2 {[%clk 0:00:30.6]} 59... Bc6 {[%clk 0:00:10.7]} 60.
Bd2 {[%clk 0:00:30.4]} 60... Bd7 {[%clk 0:00:11.8]} 61. Bc3 {[%clk 0:00:31]}
61... Nc6 {[%clk 0:00:13.3]} 62. Bd1 {[%clk 0:00:31.1]} 62... Nd4 {[%clk
0:00:14.3]} 63. Bd2 {[%clk 0:00:31.6]} 63... Bc6 {[%clk 0:00:15.2]} 64. Bc3
{[%clk 0:00:32.2]} 64... Be8 {[%clk 0:00:16.7]} 65. Bd2 {[%clk 0:00:33.2]} 65...
Nc6 {[%clk 0:00:18.3]} 66. Bc3 {[%clk 0:00:33.4]} 66... Nb4 {[%clk 0:00:19.7]}
67. Be2 {[%clk 0:00:33]} 67... Nc6 {[%clk 0:00:18.6]} 68. Bd1 {[%clk 0:00:33.2]}
68... Nd4 {[%clk 0:00:17.6]} 1/2-1/2

[Event "*** Titled Tuesday 3|2 Blitz"]
[Site "Chess.com"]
[Date "2016.09.06"]
[Round "4"]
[White "WinnieTPooh"]
[Black "DavidForthoffer"]
[Result "1/2-1/2"]
[WhiteElo "1853"]
[BlackElo "2059"]
[TimeControl "180+2"]
[EndTime "17:48:10 PDT"]
[Termination "Game drawn by repetition"]

1. d4 {[%clk 0:03:00.5]} 1... c6 {[%clk 0:03:01.1]} 2. c4 {[%clk 0:03:01.6]}
2... d5 {[%clk 0:03:02.5]} 3. Nf3 {[%clk 0:03:01.5]} 3... Nf6 {[%clk 0:03:03]}
4. Qc2 {[%clk 0:03:02.6]} 4... Bg4 {[%clk 0:02:59.1]} 5. Ne5 {[%clk 0:03:02.2]}
5... Bh5 {[%clk 0:02:58.9]} 6. g3 {[%clk 0:03:02]} 6... e6 {[%clk 0:02:59]} 7.
Bg2 {[%clk 0:03:02.4]} 7... Nbd7 {[%clk 0:02:58.6]} 8. Nxd7 {[%clk 0:02:29.9]}
8... Qxd7 {[%clk 0:03:00.5]} 9. O-O {[%clk 0:02:29.1]} 9... Bd6 {[%clk
0:02:52.2]} 10. Nd2 {[%clk 0:02:22.6]} 10... Bxe2 {[%clk 0:02:50.4]} 11. Re1
{[%clk 0:02:23.7]} 11... Bh5 {[%clk 0:02:45.3]} 12. b3 {[%clk 0:02:15.3]} 12...
Bg6 {[%clk 0:02:40.4]} 13. Qc3 {[%clk 0:02:07.4]} 13... O-O {[%clk 0:02:38.5]}
14. Bb2 {[%clk 0:02:07.8]} 14... Rfe8 {[%clk 0:02:38]} 15. Rad1 {[%clk
0:02:08.5]} 15... Rad8 {[%clk 0:02:35.7]} 16. Bh3 {[%clk 0:01:13.2]} 16... Qc7
{[%clk 0:02:28.6]} 17. f4 {[%clk 0:01:02.3]} 17... Bh5 {[%clk 0:02:24]} 18. Rc1
{[%clk 0:00:53.1]} 18... Bg4 {[%clk 0:02:22.1]} 19. Bg2 {[%clk 0:00:53.2]} 19...
Qb8 {[%clk 0:02:00.9]} 20. b4 {[%clk 0:00:28.5]} 20... dxc4 {[%clk 0:01:59.4]}
21. Nxc4 {[%clk 0:00:29]} 21... a6 {[%clk 0:01:58.5]} 22. a3 {[%clk 0:00:15]}
22... Bc7 {[%clk 0:01:56.7]} 23. h3 {[%clk 0:00:13.5]} 23... Bf5 {[%clk
0:01:56.5]} 24. g4 {[%clk 0:00:13.4]} 24... Bg6 {[%clk 0:01:56.4]} 25. Ne5
{[%clk 0:00:13.9]} 25... Nd5 {[%clk 0:01:37.1]} 26. Qg3 {[%clk 0:00:14.2]} 26...
Ne7 {[%clk 0:01:28]} 27. h4 {[%clk 0:00:10.8]} 27... f6 {[%clk 0:01:16.6]} 28.
h5 {[%clk 0:00:11.5]} 28... fxe5 {[%clk 0:01:15.9]} 29. hxg6 {[%clk 0:00:13.3]}
29... exf4 {[%clk 0:01:14.8]} 30. gxh7+ {[%clk 0:00:14.5]} 30... Kh8 {[%clk
0:01:15.9]} 31. Qh4 {[%clk 0:00:13.1]} 31... Nd5 {[%clk 0:01:09.9]} 32. Be4
{[%clk 0:00:09.4]} 32... Qc8 {[%clk 0:01:04.6]} 33. g5 {[%clk 0:00:10]} 33... g6
{[%clk 0:00:52.4]} 34. Bxg6 {[%clk 0:00:07.8]} 34... Re7 {[%clk 0:00:53.8]} 35.
Re2 {[%clk 0:00:07.1]} 35... Rg7 {[%clk 0:00:50.3]} 36. Qh6 {[%clk 0:00:07.4]}
36... Qd7 {[%clk 0:00:44.3]} 37. Rh2 {[%clk 0:00:07.6]} 37... f3 {[%clk
0:00:24.5]} 38. Rh3 {[%clk 0:00:08.5]} 38... Bf4 {[%clk 0:00:22.6]} 39. Rf1
{[%clk 0:00:08.7]} 39... Be3+ {[%clk 0:00:20.5]} 40. Kh1 {[%clk 0:00:09.4]}
40... f2 {[%clk 0:00:20.5]} 41. Be4 {[%clk 0:00:09]} 41... Bxg5 {[%clk
0:00:18.7]} 42. Qh5 {[%clk 0:00:09.6]} 42... Qe7 {[%clk 0:00:18.1]} 43. Rxf2
{[%clk 0:00:10.1]} 43... Rf8 {[%clk 0:00:17]} 44. Rhh2 {[%clk 0:00:09.5]} 44...
Be3 {[%clk 0:00:16.9]} 45. Rxf8+ {[%clk 0:00:09.1]} 45... Qxf8 {[%clk
0:00:18.8]} 46. Qe2 {[%clk 0:00:09.3]} 46... Qf4 {[%clk 0:00:18.5]} 47. Bg2
{[%clk 0:00:09.2]} 47... Qf6 {[%clk 0:00:10.2]} 48. Be4 {[%clk 0:00:09.7]} 48...
Bxd4 {[%clk 0:00:10.2]} 49. Bxd4 {[%clk 0:00:10.3]} 49... Qxd4 {[%clk
0:00:10.8]} 50. Rg2 {[%clk 0:00:11.4]} 50... Qa1+ {[%clk 0:00:09.9]} 51. Kh2
{[%clk 0:00:12.5]} 51... Qe5+ {[%clk 0:00:10.8]} 52. Kh1 {[%clk 0:00:13.7]}
52... Nf4 {[%clk 0:00:11.1]} 53. Rxg7 {[%clk 0:00:13.7]} 53... Qxg7 {[%clk
0:00:09.3]} 54. Qf3 {[%clk 0:00:14.9]} 54... Qh6+ {[%clk 0:00:08.5]} 55. Kg1
{[%clk 0:00:15.3]} 55... Nh3+ {[%clk 0:00:07.8]} 56. Kg2 {[%clk 0:00:15.2]}
56... Nf4+ {[%clk 0:00:04.5]} 57. Kg3 {[%clk 0:00:14.7]} 57... Qg5+ {[%clk
0:00:05]} 58. Kf2 {[%clk 0:00:15.4]} 58... e5 {[%clk 0:00:03.6]} 59. Ke1 {[%clk
0:00:14.7]} 59... Qg1+ {[%clk 0:00:03.9]} 60. Kd2 {[%clk 0:00:15.5]} 60... Qd4+
{[%clk 0:00:04.6]} 61. Ke1 {[%clk 0:00:16.1]} 61... Qg1+ {[%clk 0:00:05.1]} 62.
Kd2 {[%clk 0:00:17.1]} 62... Qd4+ {[%clk 0:00:06]} 63. Ke1 {[%clk 0:00:18.1]}
63... Qg1+ {[%clk 0:00:05.6]} 64. Kd2 {[%clk 0:00:19.1]} 64... Qd4+ {[%clk
0:00:06.2]} 1/2-1/2